[Event "*** Titled Tuesday Blitz"]
[Site "Chess.com"]
[Date "2018.12.04"]
[Round "10"]
[White "djano"]
[Black "volcanoexplorer"]
[Result "1-0"]
[WhiteElo "2366"]
[BlackElo "2385"]
[TimeControl "180+2"]
[EndTime "15:23:47 PST"]
[Termination "djano won by resignation"]

1. c4 {[%clk 0:03:01.9]} 1... Nf6 {[%clk 0:03:00.7]} 2. Nc3 {[%clk 0:03:02.6]}
2... e6 {[%clk 0:02:58.7]} 3. g3 {[%clk 0:03:01.1]} 3... Be7 {[%clk 0:02:54.7]}
4. Bg2 {[%clk 0:03:01.8]} 4... O-O {[%clk 0:02:55.9]} 5. Nf3 {[%clk 0:03:01.6]}
5... d5 {[%clk 0:02:56.4]} 6. d4 {[%clk 0:03:02.2]} 6... b6 {[%clk 0:02:54.9]}
7. cxd5 {[%clk 0:03:01.5]} 7... exd5 {[%clk 0:02:55.1]} 8. O-O {[%clk 0:03:03]}
8... Bb7 {[%clk 0:02:56.3]} 9. Bf4 {[%clk 0:02:55.2]} 9... c6 {[%clk 0:02:56.3]}
10. Rb1 {[%clk 0:02:52.7]} 10... a5 {[%clk 0:02:55.5]} 11. a3 {[%clk 0:02:52.4]}
11... Na6 {[%clk 0:02:53.9]} 12. Ne5 {[%clk 0:02:49.1]} 12... Nc7 {[%clk
0:02:47.5]} 13. b4 {[%clk 0:02:47.1]} 13... axb4 {[%clk 0:02:46.6]} 14. axb4
{[%clk 0:02:49]} 14... Ne6 {[%clk 0:02:47.5]} 15. Bc1 {[%clk 0:02:34.4]} 15...
Nd7 {[%clk 0:02:32.4]} 16. b5 {[%clk 0:02:31]} 16... Nxe5 {[%clk 0:02:00.3]} 17.
dxe5 {[%clk 0:02:32.9]} 17... Ra5 {[%clk 0:01:32.7]} 18. bxc6 {[%clk 0:02:28.1]}
18... Bxc6 {[%clk 0:01:33.8]} 19. Qb3 {[%clk 0:02:21]} 19... Bc5 {[%clk
0:01:20.4]} 20. Rd1 {[%clk 0:02:10.4]} 20... Nd4 {[%clk 0:01:15.7]} 21. Qb2
{[%clk 0:02:05.9]} 21... Qa8 {[%clk 0:00:55.8]} 22. e3 {[%clk 0:01:59.7]} 22...
Ne6 {[%clk 0:00:34.8]} 23. Nxd5 {[%clk 0:01:59.5]} 23... Ba3 {[%clk 0:00:35.5]}
24. Qb3 {[%clk 0:01:03.7]} 24... Ba4 {[%clk 0:00:18.7]} 25. Qxb6 {[%clk
0:00:20.2]} 25... Bc5 {[%clk 0:00:10]} 26. Qb2 {[%clk 0:00:08.3]} 26... Bxd1
{[%clk 0:00:05.3]} 27. Ne7+ {[%clk 0:00:08.7]} 27... Bxe7 {[%clk 0:00:06.4]} 28.
Bxa8 {[%clk 0:00:10.3]} 28... Rfxa8 {[%clk 0:00:07]} 29. Bd2 {[%clk 0:00:10.9]}
29... Ra2 {[%clk 0:00:07.3]} 30. Qb7 {[%clk 0:00:11.1]} 30... Bc2 {[%clk
0:00:06.3]} 31. Rb2 {[%clk 0:00:09.6]} 31... Bd3 {[%clk 0:00:03.1]} 32. Rxa2
{[%clk 0:00:06.9]} 32... Rxa2 {[%clk 0:00:05]} 33. Qxe7 {[%clk 0:00:07.6]} 33...
Ra1+ {[%clk 0:00:05.8]} 34. Kg2 {[%clk 0:00:08.6]} 34... Bf1+ {[%clk 0:00:06.6]}
35. Kf3 {[%clk 0:00:09.5]} 35... h5 {[%clk 0:00:08]} 36. h4 {[%clk 0:00:10]}
36... Bh3 {[%clk 0:00:08.5]} 37. Qe8+ {[%clk 0:00:10.4]} 37... Kh7 {[%clk
0:00:08.1]} 38. Qxf7 {[%clk 0:00:11.7]} 38... Bg4+ {[%clk 0:00:09.5]} 39. Kg2
{[%clk 0:00:12.5]} 39... Ra2 {[%clk 0:00:10.4]} 40. Be1 {[%clk 0:00:12.1]} 40...
Re2 {[%clk 0:00:11.3]} 41. Kf1 {[%clk 0:00:13]} 41... Nc5 {[%clk 0:00:11.6]} 42.
f3 {[%clk 0:00:13.2]} 42... Rxe3 {[%clk 0:00:04.5]} 43. fxg4 {[%clk 0:00:12.8]}
43... Nd3 {[%clk 0:00:05.7]} 44. Bd2 {[%clk 0:00:12.8]} 44... Nxe5 {[%clk
0:00:03.6]} 45. Qxh5+ {[%clk 0:00:12.9]} 45... Kg8 {[%clk 0:00:04.1]} 46. Bxe3
{[%clk 0:00:14.4]} 46... Nc4 {[%clk 0:00:04.5]} 47. Qd5+ {[%clk 0:00:14.2]} 1-0

[Event "*** Titled Tuesday Blitz"]
[Site "Chess.com"]
[Date "2018.12.04"]
[Round "10"]
[White "Manukyan_Artak"]
[Black "evgenyermolaev"]
[Result "0-1"]
[WhiteElo "2404"]
[BlackElo "2455"]
[TimeControl "180+2"]
[EndTime "15:23:50 PST"]
[Termination "evgenyermolaev won by checkmate"]

1. e4 {[%clk 0:03:01.9]} 1... c5 {[%clk 0:02:48.9]} 2. Nf3 {[%clk 0:03:01.2]}
2... d6 {[%clk 0:02:50.2]} 3. Bb5+ {[%clk 0:03:01.5]} 3... Nd7 {[%clk
0:02:51.4]} 4. O-O {[%clk 0:03:01.6]} 4... a6 {[%clk 0:02:52.2]} 5. Bd3 {[%clk
0:03:02.1]} 5... Ngf6 {[%clk 0:02:50.7]} 6. Re1 {[%clk 0:03:01.5]} 6... e5
{[%clk 0:02:51.9]} 7. a4 {[%clk 0:03:01.2]} 7... Be7 {[%clk 0:02:48.8]} 8. c3
{[%clk 0:02:56.7]} 8... O-O {[%clk 0:02:47.3]} 9. Na3 {[%clk 0:02:57.2]} 9...
Qc7 {[%clk 0:02:46.1]} 10. Qe2 {[%clk 0:02:48.7]} 10... b6 {[%clk 0:02:27.9]}
11. Bc2 {[%clk 0:02:47.3]} 11... Bb7 {[%clk 0:02:28.7]} 12. d4 {[%clk
0:02:48.2]} 12... Rac8 {[%clk 0:02:20]} 13. d5 {[%clk 0:02:45]} 13... Ne8 {[%clk
0:02:02]} 14. c4 {[%clk 0:02:40.7]} 14... g6 {[%clk 0:01:59.4]} 15. g4 {[%clk
0:02:21.5]} 15... Ng7 {[%clk 0:01:59.1]} 16. Kh1 {[%clk 0:02:15]} 16... Rce8
{[%clk 0:01:40.5]} 17. Rg1 {[%clk 0:02:14.2]} 17... Bc8 {[%clk 0:01:41.8]} 18.
Bh6 {[%clk 0:02:06.3]} 18... Kh8 {[%clk 0:01:39.9]} 19. h4 {[%clk 0:01:59.6]}
19... Nf6 {[%clk 0:01:39.2]} 20. Nh2 {[%clk 0:01:58]} 20... Ng8 {[%clk
0:01:38.9]} 21. Bg5 {[%clk 0:01:44.1]} 21... Bxg5 {[%clk 0:01:30.8]} 22. hxg5
{[%clk 0:01:44.8]} 22... f6 {[%clk 0:01:31.8]} 23. gxf6 {[%clk 0:01:45.1]} 23...
Rxf6 {[%clk 0:01:32.8]} 24. Bd1 {[%clk 0:01:40.4]} 24... Ref8 {[%clk 0:01:27.8]}
25. f3 {[%clk 0:01:39.4]} 25... Ne7 {[%clk 0:01:09.1]} 26. Nc2 {[%clk
0:01:37.7]} 26... g5 {[%clk 0:01:03.3]} 27. Ne3 {[%clk 0:01:30.3]} 27... Ng6
{[%clk 0:01:03.7]} 28. Nf5 {[%clk 0:01:24.4]} 28... Nf4 {[%clk 0:01:03]} 29. Qf1
{[%clk 0:01:20.7]} 29... Bxf5 {[%clk 0:00:54.3]} 30. gxf5 {[%clk 0:01:17.1]}
30... Rh6 {[%clk 0:00:28.8]} 31. a5 {[%clk 0:00:55.8]} 31... Qe7 {[%clk
0:00:17.2]} 32. axb6 {[%clk 0:00:53.5]} 32... Qf6 {[%clk 0:00:17.6]} 33. Rg3
{[%clk 0:00:32.9]} 33... Rh4 {[%clk 0:00:12.5]} 34. b7 {[%clk 0:00:19.7]} 34...
Ngh5 {[%clk 0:00:13.1]} 35. Qf2 {[%clk 0:00:18]} 35... Nxg3+ {[%clk 0:00:10.1]}
36. Qxg3 {[%clk 0:00:19.9]} 36... Rh3 {[%clk 0:00:11.8]} 37. Qf2 {[%clk
0:00:20.4]} 37... Rb8 {[%clk 0:00:12.3]} 38. Rxa6 {[%clk 0:00:19.6]} 38... Rxb7
{[%clk 0:00:13.9]} 39. Ra8+ {[%clk 0:00:20.4]} 39... Kg7 {[%clk 0:00:15.2]} 40.
Ba4 {[%clk 0:00:20.6]} 40... Nd3 {[%clk 0:00:12.1]} 41. Qd2 {[%clk 0:00:19.7]}
41... Rxb2 {[%clk 0:00:13.3]} 42. Qa5 {[%clk 0:00:20.5]} 42... Rhxh2+ {[%clk
0:00:13.6]} 43. Kg1 {[%clk 0:00:21.9]} 43... Rhg2+ {[%clk 0:00:13.2]} 44. Kf1
{[%clk 0:00:23.1]} 44... Rgf2+ {[%clk 0:00:14.5]} 45. Kg1 {[%clk 0:00:22.9]}
45... Rb1+ {[%clk 0:00:14.8]} 46. Bd1 {[%clk 0:00:24.4]} 46... Rxd1+ {[%clk
0:00:15.5]} 47. Qe1 {[%clk 0:00:24.9]} 47... Rxe1# {[%clk 0:00:17]} 0-1

[Event "*** Titled Tuesday Blitz"]
[Site "Chess.com"]
[Date "2018.12.04"]
[Round "10"]
[White "sandager"]
[Black "PawnEatingZombie"]
[Result "1/2-1/2"]
[WhiteElo "1977"]
[BlackElo "2203"]
[TimeControl "180+2"]
[EndTime "15:23:52 PST"]
[Termination "Game drawn - insufficient material"]

1. e4 {[%clk 0:02:57.9]} 1... e6 {[%clk 0:03:00.4]} 2. d4 {[%clk 0:02:57.6]}
2... d5 {[%clk 0:03:01.9]} 3. Nd2 {[%clk 0:02:58.3]} 3... c5 {[%clk 0:03:01.9]}
4. exd5 {[%clk 0:02:57.1]} 4... Qxd5 {[%clk 0:03:02.7]} 5. Ngf3 {[%clk
0:02:57.1]} 5... cxd4 {[%clk 0:03:03.3]} 6. Bc4 {[%clk 0:02:56.4]} 6... Qd7
{[%clk 0:03:04.6]} 7. O-O {[%clk 0:02:56.3]} 7... Nc6 {[%clk 0:03:04.5]} 8. Nb3
{[%clk 0:02:51.8]} 8... a6 {[%clk 0:03:05.4]} 9. Nbxd4 {[%clk 0:02:51.1]} 9...
Nxd4 {[%clk 0:03:07.3]} 10. Qxd4 {[%clk 0:02:50]} 10... Qxd4 {[%clk 0:03:08.1]}
11. Nxd4 {[%clk 0:02:50.3]} 11... Bd7 {[%clk 0:03:05.5]} 12. a4 {[%clk
0:02:48.4]} 12... Nf6 {[%clk 0:03:03.5]} 13. Be3 {[%clk 0:02:41.4]} 13... O-O-O
{[%clk 0:02:57.9]} 14. Nb3 {[%clk 0:02:30.5]} 14... Bc6 {[%clk 0:02:44.2]} 15.
Bb6 {[%clk 0:02:25.9]} 15... Rd6 {[%clk 0:02:18.3]} 16. Rfd1 {[%clk 0:01:50.5]}
16... Nd7 {[%clk 0:02:18.7]} 17. Be3 {[%clk 0:01:47.6]} 17... Be7 {[%clk
0:02:13.4]} 18. Na5 {[%clk 0:01:47.1]} 18... Be4 {[%clk 0:02:05.1]} 19. Rxd6
{[%clk 0:01:38.3]} 19... Bxd6 {[%clk 0:02:04.6]} 20. c3 {[%clk 0:01:38.8]} 20...
Bc7 {[%clk 0:02:02.4]} 21. Nb3 {[%clk 0:01:34.3]} 21... Nf6 {[%clk 0:01:59.3]}
22. f3 {[%clk 0:01:28.9]} 22... Bd5 {[%clk 0:01:58]} 23. Nd2 {[%clk 0:01:22.6]}
23... Rd8 {[%clk 0:01:48.8]} 24. Bxd5 {[%clk 0:01:19.1]} 24... Nxd5 {[%clk
0:01:47.6]} 25. Kf2 {[%clk 0:00:46.9]} 25... Nxe3 {[%clk 0:01:18.4]} 26. Kxe3
{[%clk 0:00:46.5]} 26... Bxh2 {[%clk 0:01:19.9]} 27. Rh1 {[%clk 0:00:44.9]}
27... Bf4+ {[%clk 0:01:20.8]} 28. Kxf4 {[%clk 0:00:44.7]} 28... Rxd2 {[%clk
0:01:22.4]} 29. Rxh7 {[%clk 0:00:37.9]} 29... Rxg2 {[%clk 0:01:22.9]} 30. b4
{[%clk 0:00:38.5]} 30... Kc7 {[%clk 0:01:21.9]} 31. c4 {[%clk 0:00:30.7]} 31...
Kd7 {[%clk 0:01:22.7]} 32. b5 {[%clk 0:00:28.9]} 32... axb5 {[%clk 0:01:20.7]}
33. axb5 {[%clk 0:00:29.5]} 33... Ke7 {[%clk 0:01:19.2]} 34. Ke4 {[%clk
0:00:30.1]} 34... g5 {[%clk 0:01:11.7]} 35. Kd4 {[%clk 0:00:29.6]} 35... b6
{[%clk 0:01:08.8]} 36. c5 {[%clk 0:00:23.7]} 36... bxc5+ {[%clk 0:01:06.3]} 37.
Kxc5 {[%clk 0:00:24.3]} 37... Rg3 {[%clk 0:00:58.5]} 38. b6 {[%clk 0:00:21.5]}
38... Rxf3 {[%clk 0:00:59.4]} 39. Kc6 {[%clk 0:00:20.9]} 39... Rc3+ {[%clk
0:00:58.1]} 40. Kb5 {[%clk 0:00:21.4]} 40... Rb3+ {[%clk 0:00:59]} 41. Kc6
{[%clk 0:00:21.9]} 41... Kf6 {[%clk 0:00:48.3]} 42. b7 {[%clk 0:00:21]} 42... g4
{[%clk 0:00:46.1]} 43. Rh8 {[%clk 0:00:21.4]} 43... Kf5 {[%clk 0:00:40.6]} 44.
Rg8 {[%clk 0:00:21.5]} 44... Kf4 {[%clk 0:00:38.7]} 45. Kc7 {[%clk 0:00:22.8]}
45... f5 {[%clk 0:00:36.2]} 46. b8=Q {[%clk 0:00:22.6]} 46... Rxb8 {[%clk
0:00:36]} 47. Kxb8 {[%clk 0:00:22]} 47... Kf3 {[%clk 0:00:35.4]} 48. Kc7 {[%clk
0:00:23]} 48... f4 {[%clk 0:00:28.5]} 49. Kd6 {[%clk 0:00:23.5]} 49... g3 {[%clk
0:00:30.1]} 50. Ke5 {[%clk 0:00:21.5]} 50... g2 {[%clk 0:00:27]} 51. Rg7 {[%clk
0:00:22.2]} 51... Kf2 {[%clk 0:00:21.2]} 52. Kxf4 {[%clk 0:00:22]} 52... g1=Q
{[%clk 0:00:22.5]} 53. Rxg1 {[%clk 0:00:21.5]} 53... Kxg1 {[%clk 0:00:24.4]} 54.
Ke5 {[%clk 0:00:22.2]} 54... Kg2 {[%clk 0:00:24.2]} 55. Kxe6 {[%clk 0:00:22.5]}
1/2-1/2

[Event "*** Titled Tuesday Blitz"]
[Site "Chess.com"]
[Date "2018.12.04"]
[Round "10"]
[White "GreatDamnedRedSpot"]
[Black "Evgeny81"]
[Result "1/2-1/2"]
[WhiteElo "2334"]
[BlackElo "2491"]
[TimeControl "180+2"]
[EndTime "15:23:59 PST"]
[Termination "Game drawn by repetition"]

1. e4 {[%clk 0:03:01.9]} 1... e5 {[%clk 0:03:00.3]} 2. Nf3 {[%clk 0:03:02.8]}
2... c6 {[%clk 0:03:01.9]} 3. Nc3 {[%clk 0:02:48.4]} 3... d6 {[%clk 0:03:02.5]}
4. d4 {[%clk 0:02:44.4]} 4... Nd7 {[%clk 0:03:01.8]} 5. Bg5 {[%clk 0:02:42.8]}
5... Be7 {[%clk 0:03:02.5]} 6. Qd2 {[%clk 0:02:37.4]} 6... Bxg5 {[%clk
0:03:01.8]} 7. Nxg5 {[%clk 0:02:33.9]} 7... exd4 {[%clk 0:03:03.1]} 8. Ne2
{[%clk 0:02:33.9]} 8... c5 {[%clk 0:02:58.5]} 9. c3 {[%clk 0:02:34.8]} 9... d3
{[%clk 0:02:52.7]} 10. Ng3 {[%clk 0:02:20.6]} 10... Ne5 {[%clk 0:02:53.7]} 11.
f4 {[%clk 0:02:18]} 11... h6 {[%clk 0:02:43.3]} 12. Nf3 {[%clk 0:01:47.2]} 12...
Nxf3+ {[%clk 0:02:42.7]} 13. gxf3 {[%clk 0:01:49.1]} 13... c4 {[%clk 0:02:42.6]}
14. b3 {[%clk 0:01:50.7]} 14... d5 {[%clk 0:02:34.3]} 15. exd5 {[%clk 0:01:35]}
15... Qxd5 {[%clk 0:02:35]} 16. bxc4 {[%clk 0:01:35.3]} 16... Qxf3 {[%clk
0:02:34]} 17. Bg2 {[%clk 0:01:27.9]} 17... Qg4 {[%clk 0:02:33.7]} 18. O-O {[%clk
0:01:25.7]} 18... Be6 {[%clk 0:02:15.1]} 19. Bxb7 {[%clk 0:01:11.4]} 19... Rd8
{[%clk 0:02:15.5]} 20. Rae1 {[%clk 0:01:03.7]} 20... Kf8 {[%clk 0:02:12.9]} 21.
f5 {[%clk 0:01:02.1]} 21... Bc8 {[%clk 0:01:53.7]} 22. Bxc8 {[%clk 0:00:44.7]}
22... Rxc8 {[%clk 0:01:55.6]} 23. Qxd3 {[%clk 0:00:45.9]} 23... Nf6 {[%clk
0:01:55.2]} 24. Qd6+ {[%clk 0:00:36.4]} 24... Kg8 {[%clk 0:01:55.7]} 25. Rf4
{[%clk 0:00:37.6]} 25... Qg5 {[%clk 0:01:53.6]} 26. Kg2 {[%clk 0:00:17.3]} 26...
Nh5 {[%clk 0:01:41.7]} 27. Rd4 {[%clk 0:00:14.5]} 27... Kh7 {[%clk 0:01:38.5]}
28. Qe7 {[%clk 0:00:10.2]} 28... Rhe8 {[%clk 0:00:51.6]} 29. Qxg5 {[%clk
0:00:09.9]} 29... hxg5 {[%clk 0:00:52.4]} 30. Rxe8 {[%clk 0:00:10.6]} 30... Rxe8
{[%clk 0:00:53.9]} 31. Nxh5 {[%clk 0:00:11.7]} 31... Re2+ {[%clk 0:00:51.2]} 32.
Kg3 {[%clk 0:00:13]} 32... Rxa2 {[%clk 0:00:51.8]} 33. c5 {[%clk 0:00:14.5]}
33... Kh6 {[%clk 0:00:48.5]} 34. c6 {[%clk 0:00:15.3]} 34... Re2 {[%clk
0:00:36.5]} 35. c7 {[%clk 0:00:13]} 35... Re3+ {[%clk 0:00:37.6]} 36. Kg4 {[%clk
0:00:12.4]} 36... Rxc3 {[%clk 0:00:38.9]} 37. Rd6+ {[%clk 0:00:11.7]} 37... f6
{[%clk 0:00:39.9]} 38. Nxf6 {[%clk 0:00:12.7]} 38... gxf6 {[%clk 0:00:38.7]} 39.
Rxf6+ {[%clk 0:00:14.6]} 39... Kg7 {[%clk 0:00:39.9]} 40. Rg6+ {[%clk
0:00:15.4]} 40... Kf7 {[%clk 0:00:41]} 41. Kxg5 {[%clk 0:00:16.2]} 41... Rxc7
{[%clk 0:00:40.6]} 42. h4 {[%clk 0:00:17.8]} 42... Rc1 {[%clk 0:00:40.1]} 43. h5
{[%clk 0:00:18.4]} 43... Rg1+ {[%clk 0:00:36.7]} 44. Kf4 {[%clk 0:00:19.6]}
44... Rf1+ {[%clk 0:00:33.8]} 45. Ke5 {[%clk 0:00:20.1]} 45... Re1+ {[%clk
0:00:33.4]} 46. Kd4 {[%clk 0:00:19.4]} 46... Rd1+ {[%clk 0:00:31.8]} 47. Ke4
{[%clk 0:00:18.2]} 47... Re1+ {[%clk 0:00:32.6]} 48. Kf4 {[%clk 0:00:19.8]}
48... Rf1+ {[%clk 0:00:33.7]} 49. Kg5 {[%clk 0:00:21.5]} 49... Rg1+ {[%clk
0:00:34.7]} 50. Kh6 {[%clk 0:00:23.2]} 50... Rf1 {[%clk 0:00:35.6]} 51. Ra6
{[%clk 0:00:21.3]} 51... Rxf5 {[%clk 0:00:35.4]} 52. Rxa7+ {[%clk 0:00:22.8]}
52... Kg8 {[%clk 0:00:31.9]} 53. Kg6 {[%clk 0:00:19.6]} 53... Rf8 {[%clk
0:00:32.8]} 54. Rg7+ {[%clk 0:00:17.7]} 54... Kh8 {[%clk 0:00:34]} 55. Rh7+
{[%clk 0:00:19.2]} 55... Kg8 {[%clk 0:00:35.4]} 56. Rg7+ {[%clk 0:00:20.8]}
56... Kh8 {[%clk 0:00:36.8]} 57. Rh7+ {[%clk 0:00:22.4]} 57... Kg8 {[%clk
0:00:38.3]} 58. Rg7+ {[%clk 0:00:24]} 58... Kh8 {[%clk 0:00:39.8]} 59. Rh7+
{[%clk 0:00:25.5]} 59... Kg8 {[%clk 0:00:41.3]} 60. Rg7+ {[%clk 0:00:27.1]}
60... Kh8 {[%clk 0:00:42.7]} 61. Rh7+ {[%clk 0:00:28.5]} 1/2-1/2

[Event "*** Titled Tuesday Blitz"]
[Site "Chess.com"]
[Date "2018.12.04"]
[Round "10"]
[White "ChessQueen"]
[Black "akretchetov"]
[Result "1-0"]
[WhiteElo "2555"]
[BlackElo "2361"]
[TimeControl "180+2"]
[EndTime "15:24:04 PST"]
[Termination "ChessQueen won by resignation"]

1. e4 {[%clk 0:03:01.9]} 1... e5 {[%clk 0:03:00.3]} 2. Nf3 {[%clk 0:03:02.6]}
2... Nc6 {[%clk 0:02:58.9]} 3. Bc4 {[%clk 0:03:03.6]} 3... Bc5 {[%clk
0:02:58.6]} 4. d3 {[%clk 0:03:04.7]} 4... d6 {[%clk 0:02:58.6]} 5. c3 {[%clk
0:03:03.7]} 5... Nf6 {[%clk 0:02:57.7]} 6. Bg5 {[%clk 0:03:03.2]} 6... a6 {[%clk
0:02:55.4]} 7. a4 {[%clk 0:03:03.9]} 7... h6 {[%clk 0:02:55.2]} 8. Bh4 {[%clk
0:03:04.5]} 8... Qe7 {[%clk 0:02:48.5]} 9. O-O {[%clk 0:03:02.3]} 9... Ba7
{[%clk 0:02:48.7]} 10. Nbd2 {[%clk 0:03:02.6]} 10... g5 {[%clk 0:02:48.8]} 11.
Bg3 {[%clk 0:03:03.8]} 11... Bd7 {[%clk 0:02:04.7]} 12. b4 {[%clk 0:03:04.2]}
12... Nh5 {[%clk 0:01:52.1]} 13. Nxe5 {[%clk 0:02:29.5]} 13... Nxe5 {[%clk
0:01:38.1]} 14. Bxe5 {[%clk 0:02:29.3]} 14... Qxe5 {[%clk 0:01:31.4]} 15. Qxh5
{[%clk 0:02:30.2]} 15... O-O-O {[%clk 0:01:31.6]} 16. d4 {[%clk 0:02:30.4]}
16... Qf4 {[%clk 0:01:28.2]} 17. Ra2 {[%clk 0:02:09.4]} 17... Rdf8 {[%clk
0:01:20.6]} 18. g3 {[%clk 0:01:57.2]} 18... Qf6 {[%clk 0:01:20.2]} 19. Re1
{[%clk 0:01:41]} 19... Qe7 {[%clk 0:01:19.5]} 20. e5 {[%clk 0:01:35]} 20... dxe5
{[%clk 0:01:18.6]} 21. Rxe5 {[%clk 0:01:35.5]} 21... Qf6 {[%clk 0:01:14.1]} 22.
Ne4 {[%clk 0:01:30.2]} 22... Qg7 {[%clk 0:01:12.2]} 23. Nc5 {[%clk 0:01:23.9]}
23... Bxc5 {[%clk 0:01:03.3]} 24. bxc5 {[%clk 0:01:24.5]} 24... f6 {[%clk
0:01:03.9]} 25. Re1 {[%clk 0:01:24.3]} 25... Re8 {[%clk 0:01:03.2]} 26. Rae2
{[%clk 0:01:20.4]} 26... Rxe2 {[%clk 0:01:02.2]} 27. Qxe2 {[%clk 0:01:21.3]}
27... Bxa4 {[%clk 0:01:03]} 28. Bxa6 {[%clk 0:01:22.3]} 28... Re8 {[%clk
0:00:59.4]} 29. Qg4+ {[%clk 0:01:11.9]} 29... Kb8 {[%clk 0:00:51.2]} 30. Rxe8+
{[%clk 0:01:11.8]} 30... Bxe8 {[%clk 0:00:51.9]} 31. Bf1 {[%clk 0:00:57.2]}
31... Bd7 {[%clk 0:00:51.5]} 32. Qe2 {[%clk 0:00:47.6]} 32... c6 {[%clk
0:00:48.7]} 33. Bg2 {[%clk 0:00:44]} 33... f5 {[%clk 0:00:48.5]} 34. Qe3 {[%clk
0:00:44.2]} 34... Qf7 {[%clk 0:00:40.2]} 35. Qe5+ {[%clk 0:00:43.5]} 35... Kc8
{[%clk 0:00:39.2]} 36. d5 {[%clk 0:00:44.4]} 36... cxd5 {[%clk 0:00:38]} 37.
Bxd5 {[%clk 0:00:45.4]} 37... Qf8 {[%clk 0:00:36]} 38. Bc4 {[%clk 0:00:30]}
38... f4 {[%clk 0:00:31.7]} 39. Bd5 {[%clk 0:00:29]} 39... fxg3 {[%clk
0:00:17.6]} 40. hxg3 {[%clk 0:00:28]} 40... Qf5 {[%clk 0:00:16.4]} 41. Qd4
{[%clk 0:00:20.9]} 41... Kc7 {[%clk 0:00:15.3]} 42. Be4 {[%clk 0:00:21.5]} 42...
Qe6 {[%clk 0:00:15.1]} 43. c4 {[%clk 0:00:22.4]} 43... Bc6 {[%clk 0:00:15.1]}
44. Bd5 {[%clk 0:00:23.3]} 44... Qe1+ {[%clk 0:00:14.8]} 45. Kg2 {[%clk
0:00:24.7]} 45... Qe7 {[%clk 0:00:15.1]} 46. Kf1 {[%clk 0:00:20.2]} 46... Qe8
{[%clk 0:00:14.3]} 47. Qg7+ {[%clk 0:00:20]} 47... Kb8 {[%clk 0:00:14.6]} 48.
Qxh6 {[%clk 0:00:19.9]} 48... Qe5 {[%clk 0:00:14.1]} 49. Qd6+ {[%clk 0:00:20]}
49... Qxd6 {[%clk 0:00:14.4]} 50. cxd6 {[%clk 0:00:21.3]} 50... Bd7 {[%clk
0:00:14.3]} 51. c5 {[%clk 0:00:20.1]} 51... Ka7 {[%clk 0:00:14.1]} 52. Ke2
{[%clk 0:00:20]} 52... Ka6 {[%clk 0:00:15.4]} 53. Kd3 {[%clk 0:00:21.1]} 53...
Kb5 {[%clk 0:00:16.6]} 54. Kd4 {[%clk 0:00:22.2]} 54... g4 {[%clk 0:00:16.8]}
55. Bxb7 {[%clk 0:00:22.2]} 1-0

[Event "*** Titled Tuesday Blitz"]
[Site "Chess.com"]
[Date "2018.12.04"]
[Round "10"]
[White "SCIM"]
[Black "DishonorOnYourCow"]
[Result "1-0"]
[WhiteElo "2430"]
[BlackElo "2237"]
[TimeControl "180+2"]
[EndTime "15:24:04 PST"]
[Termination "SCIM won by checkmate"]

1. d4 {[%clk 0:03:01.9]} 1... Nf6 {[%clk 0:03:00.5]} 2. c4 {[%clk 0:03:01.2]}
2... g6 {[%clk 0:03:00.8]} 3. Nc3 {[%clk 0:03:01.4]} 3... d5 {[%clk 0:03:02]} 4.
cxd5 {[%clk 0:02:45]} 4... Nxd5 {[%clk 0:03:01.5]} 5. e4 {[%clk 0:02:46.1]} 5...
Nxc3 {[%clk 0:03:00.1]} 6. bxc3 {[%clk 0:02:47.5]} 6... Bg7 {[%clk 0:03:01.4]}
7. Nf3 {[%clk 0:02:43.7]} 7... O-O {[%clk 0:03:01.6]} 8. Be3 {[%clk 0:02:39.1]}
8... c5 {[%clk 0:02:58.9]} 9. Qd2 {[%clk 0:02:38]} 9... Nc6 {[%clk 0:02:58.7]}
10. d5 {[%clk 0:02:36.1]} 10... Qa5 {[%clk 0:02:54.1]} 11. Rc1 {[%clk
0:02:30.1]} 11... Rd8 {[%clk 0:02:53.8]} 12. Bc4 {[%clk 0:02:23.2]} 12... Bg4
{[%clk 0:02:34.8]} 13. O-O {[%clk 0:02:21.6]} 13... Bxf3 {[%clk 0:02:34.3]} 14.
gxf3 {[%clk 0:02:21.7]} 14... Ne5 {[%clk 0:02:35]} 15. Be2 {[%clk 0:02:21.6]}
15... Rac8 {[%clk 0:02:06.1]} 16. c4 {[%clk 0:02:17.3]} 16... Qc7 {[%clk
0:02:03.8]} 17. f4 {[%clk 0:02:08.2]} 17... Nd7 {[%clk 0:02:00.2]} 18. e5 {[%clk
0:02:08.3]} 18... Nb6 {[%clk 0:01:54.5]} 19. Rfd1 {[%clk 0:01:56.6]} 19... Qd7
{[%clk 0:01:33]} 20. Qd3 {[%clk 0:01:39.2]} 20... Qh3 {[%clk 0:01:16.5]} 21. Qe4
{[%clk 0:01:34.9]} 21... f5 {[%clk 0:01:06.3]} 22. Qf3 {[%clk 0:01:25.7]} 22...
Qxf3 {[%clk 0:01:01.8]} 23. Bxf3 {[%clk 0:01:25]} 23... Kf7 {[%clk 0:00:54.4]}
24. Rc2 {[%clk 0:01:19.8]} 24... Na8 {[%clk 0:00:37.3]} 25. Rb1 {[%clk
0:01:09.1]} 25... b6 {[%clk 0:00:37.8]} 26. a4 {[%clk 0:01:09.3]} 26... Rg8
{[%clk 0:00:29.4]} 27. h4 {[%clk 0:01:02.8]} 27... h6 {[%clk 0:00:23.7]} 28. Kf1
{[%clk 0:00:58.4]} 28... g5 {[%clk 0:00:21.4]} 29. hxg5 {[%clk 0:00:58.3]} 29...
hxg5 {[%clk 0:00:22.5]} 30. Bh5+ {[%clk 0:00:59.3]} 30... Kf8 {[%clk 0:00:23.2]}
31. a5 {[%clk 0:00:57.4]} 31... Bh6 {[%clk 0:00:23.1]} 32. fxg5 {[%clk
0:00:53.7]} 32... Bxg5 {[%clk 0:00:23.8]} 33. f4 {[%clk 0:00:54.6]} 33... Bh6
{[%clk 0:00:20.6]} 34. Bf3 {[%clk 0:00:54.4]} 34... Rg3 {[%clk 0:00:16.2]} 35.
Kf2 {[%clk 0:00:53.5]} 35... Rh3 {[%clk 0:00:15.9]} 36. Rh1 {[%clk 0:00:42.6]}
36... Rxh1 {[%clk 0:00:16.3]} 37. Bxh1 {[%clk 0:00:44.1]} 37... Kf7 {[%clk
0:00:17.2]} 38. Bf3 {[%clk 0:00:38]} 38... bxa5 {[%clk 0:00:17.8]} 39. Ra2
{[%clk 0:00:37.4]} 39... Nb6 {[%clk 0:00:18.9]} 40. Be2 {[%clk 0:00:35.2]} 40...
a4 {[%clk 0:00:19.5]} 41. Ra1 {[%clk 0:00:33]} 41... Bg7 {[%clk 0:00:20.1]} 42.
Bh5+ {[%clk 0:00:29.2]} 42... Kf8 {[%clk 0:00:20.5]} 43. Be2 {[%clk 0:00:30.8]}
43... Kf7 {[%clk 0:00:19.4]} 44. Rg1 {[%clk 0:00:30.1]} 44... Kf8 {[%clk
0:00:11]} 45. Rb1 {[%clk 0:00:24.7]} 45... Kf7 {[%clk 0:00:11.3]} 46. Ke1 {[%clk
0:00:24.2]} 46... Bh6 {[%clk 0:00:09.4]} 47. Kd2 {[%clk 0:00:23.3]} 47... Bf8
{[%clk 0:00:08.7]} 48. Kd3 {[%clk 0:00:23]} 48... e6 {[%clk 0:00:08.2]} 49. d6
{[%clk 0:00:20.8]} 49... Ke8 {[%clk 0:00:09.4]} 50. Rh1 {[%clk 0:00:19.4]} 50...
Kd7 {[%clk 0:00:09.5]} 51. Rh7+ {[%clk 0:00:19.2]} 51... Kd8 {[%clk 0:00:05.4]}
52. Bf2 {[%clk 0:00:20.2]} 52... a3 {[%clk 0:00:06]} 53. Bh4+ {[%clk 0:00:20.9]}
53... Ke8 {[%clk 0:00:04.4]} 54. Bh5# {[%clk 0:00:20.7]} 1-0